bitfinex/quotes_SOLUSD_20241029
["timestamp","ask_amount","ask_price","bid_price","bid_amount"]
[1730194417884,7.44714234,181.16,181.12,5.5211]
[1730194418065,12.96724234,181.16,181.12,5.5211]
[1730194419167,5.5201,181.16,181.12,12.96824234]
[1730194419478,5.5201,181.16,181.12,7.44714234]
[1730194420179,5.5201,181.16,181.11,7.44714234]
[1730194420550,29.421074,181.2,181.11,12.96834234]
[1730194420779,7.44714234,181.17,181.11,12.96834234]
[1730194422674,5.5199,181.16,181.11,12.96834234]
[1730194422880,7.44714234,181.15,181.1,12.96884234]
[1730194424269,7.44714234,181.15,181.1,7.44714234]
[1730194427771,12.96704234,181.16,181.1,7.44714234]
[1730194427979,5.5197,181.17,181.12,7.44714234]
[1730194428281,12.96684234,181.17,181.12,7.44714234]
[1730194428473,12.96684234,181.17,181.12,12.96804234]
[1730194430273,7.44714234,181.16,181.11,7.44714234]
[1730194431263,7.44714234,181.16,181.12,5.5212]
[1730194433071,7.44714234,181.15,181.08,5.5224]
[1730194433270,7.44714234,181.15,181.1,7.44714234]
[1730194433467,12.96764234,181.15,181.1,7.44714234]
[1730194434973,7.44714234,181.16,181.1,7.44714234]
[1730194436978,5.5202,181.15,181.1,7.44714234]
[1730194437774,5.5193,181.18,181.12,7.44714234]
[1730194437968,7.44714234,181.17,181.12,7.44714234]
[1730194438176,7.44714234,181.17,181.11,7.44714234]
[1730194438478,7.44714234,181.17,181.12,7.44714234]
[1730194439575,12.96704234,181.17,181.12,12.96824234]
[1730194441798,12.96704234,181.17,181.07,15.5985]
[1730194441973,7.44714234,181.16,181.11,7.44714234]
[1730194442175,12.96704234,181.17,181.11,7.44714234]
[1730194443872,12.96704234,181.17,181.12,5.5212]
[1730194447904,7.44714234,181.16,181.12,5.5212]
[1730194449197,5.5198,181.17,181.12,5.5212]
[1730194449401,7.44714234,181.16,181.12,5.5212]
[1730194454815,7.44714234,181.17,181.12,5.5212]
[1730194455197,5.5181,181.22,181.14,7.44714234]
[1730194455400,7.44714234,181.2,181.14,7.44714234]
[1730194455713,4.13300352,181.19,181.14,7.44714234]
[1730194456796,17.09944586,181.19,181.14,7.44714234]
[1730194456996,12.96644234,181.19,181.14,7.44714234]
[1730194458016,7.44714234,181.18,181.13,7.44714234]
[1730194458316,7.44714234,181.16,181.08,25.5224]
[1730194458531,7.44714234,181.15,181.1,7.44714234]
[1730194458901,5.5193,181.19,181.11,7.44714234]
[1730194459095,4.13316329,181.18,181.11,7.44714234]
[1730194459292,7.44714234,181.17,181.11,7.44714234]
[1730194460503,5.5199,181.16,181.11,12.96834234]
[1730194462025,12.96704234,181.16,181.11,12.96834234]
[1730194463529,7.44714234,181.17,181.11,12.96834234]
[1730194464818,5.519,181.19,181.11,12.96834234]
[1730194464819,12.96704234,181.16,181.11,12.96834234]
[1730194465229,12.96704234,181.16,181.1,5.5217]
[1730194465525,7.44714234,181.15,181.09,7.44714234]
[1730194466314,7.44714234,181.16,181.1,7.44714234]
[1730194466522,7.44714234,181.16,181.11,7.44714234]
[1730194467298,5.519,181.19,181.12,12.96834234]
[1730194467507,11.58128278,181.18,181.13,7.44714234]
[1730194467710,7.44714234,181.18,181.13,7.44714234]
[1730194468307,7.44714234,181.18,181.12,12.96834234]
[1730194469720,5.5196,181.17,181.12,7.44714234]
[1730194471628,5.5196,181.17,181.12,12.96824234]
[1730194476533,12.96614234,181.19,181.13,7.44714234]
[1730194479336,12.96614234,181.19,181.13,12.96794234]
[1730194481733,7.44714234,181.18,181.13,12.96794234]
[1730194481915,12.96674234,181.18,181.13,12.96794234]
[1730194482114,12.96674234,181.18,181.13,5.5208]
[1730194483340,23.902374,181.22,181.12,7.44714234]
[1730194483635,7.44714234,181.18,181.12,7.44714234]
[1730194484533,5.5196,181.17,181.12,12.96804234]
[1730194487818,5.5196,181.17,181.08,25.5224]
[1730194487819,7.44714234,181.16,181.08,25.5224]
[1730194488020,7.44714234,181.16,181.11,7.44714234]
[1730194488216,7.44714234,181.14,181.08,5.5224]
[1730194488419,7.44714234,181.14,181.08,12.96954234]
[1730194489129,12.96774234,181.14,181.08,12.96954234]
[1730194489435,12.96774234,181.14,181.09,7.44714234]
[1730194489615,5.5206,181.14,181.09,7.44714234]
[1730194490220,5.5206,181.14,181.1,5.5218]
[1730194492640,5.5196,181.17,181.1,12.96894234]
[1730194492845,5.5196,181.17,181.13,7.44714234]
[1730194493027,5.5195,181.18,181.13,7.44714234]
[1730194493930,12.96664234,181.18,181.13,7.44714234]
[1730194495143,7.44714234,181.17,181.12,5.5209]
[1730194495344,7.44714234,181.17,181.12,12.96804234]
[1730194497140,12.96694234,181.17,181.12,12.96804234]
[1730194503244,5.5198,181.17,181.13,7.44714234]
[1730194503749,12.96694234,181.17,181.12,7.44714234]
[1730194505847,12.96694234,181.17,181.12,12.96804234]
[1730194506056,7.44714234,181.15,181.1,9.20557782]
[1730194506247,7.44714234,181.14,181.1,5.5217]
[1730194506443,7.44714234,181.14,181.01,2.10979052]
[1730194506444,0.12549,181.09,181.01,2.10979052]
[1730194506648,7.44714234,181.05,181.0,0.2094779]
[1730194506952,7.44714234,181.06,181.01,5.5245]
[1730194507129,16.33058352,181.1,181.04,7.44714234]
[1730194507334,23.77772586,181.1,181.04,7.44714234]
[1730194507935,29.29962586,181.1,181.04,12.97064234]
[1730194508349,7.44714234,181.09,181.04,12.97064234]
[1730194509343,23.77772586,181.1,181.04,12.97064234]
[1730194509532,7.44714234,181.09,181.04,12.97064234]
[1730194510034,7.44714234,181.09,181.0,0.2094779]
[1730194510035,7.44714234,181.08,181.03,20.0]
[1730194510659,7.44714234,181.09,181.03,27.44714234]
[1730194511446,7.44714234,181.09,181.04,7.44714234]
[1730194512755,7.44714234,181.09,181.05,5.5233]
[1730194514052,7.44714234,181.09,181.04,7.44714234]
[1730194514053,7.44714234,181.09,181.04,5.5236]
[1730194514563,7.44714234,181.05,181.0,0.2094779]
[1730194514857,7.44714234,181.05,181.0,7.65662024]
[1730194515180,7.44714234,181.05,181.0,0.2094779]
[1730194515464,7.44714234,181.05,181.0,7.65662024]
[1730194516037,7.44714234,181.05,181.01,5.5245]
[1730194516435,7.44714234,181.07,181.02,7.44714234]
[1730194516645,12.96984234,181.07,181.02,7.44714234]
[1730194517360,12.96984234,181.07,181.01,5.5245]
[1730194517546,7.44714234,181.06,181.01,12.97164234]
[1730194518146,12.97014234,181.06,181.0,0.2094779]
[1730194518363,12.97014234,181.06,181.01,7.44714234]
[1730194518751,7.44714234,181.06,181.01,7.44714234]
[1730194519861,7.44714234,181.07,181.01,12.97144234]
[1730194520054,12.96954234,181.08,181.01,5.5243]
[1730194520256,7.57263234,181.09,181.04,7.44714234]
[1730194520441,7.44714234,181.08,181.03,7.44714234]
[1730194520965,7.44714234,181.07,181.01,5.5243]
[1730194521164,7.44714234,181.07,181.02,7.44714234]
[1730194521665,7.44714234,181.07,181.02,12.97114234]
[1730194522057,7.44714234,181.07,181.02,5.524]
[1730194522245,12.96984234,181.07,181.02,5.524]
[1730194522563,7.57263234,181.06,181.01,5.5245]
[1730194522762,7.57263234,181.06,181.01,12.97164234]
[1730194523667,0.12549,181.06,181.01,12.97164234]
[1730194524165,0.12549,181.06,181.02,7.44714234]
[1730194524747,0.12549,181.06,181.02,12.97124234]
[1730194524944,7.44714234,181.08,181.03,7.44714234]
[1730194526568,0.12549,181.08,181.03,7.44714234]
[1730194526770,0.12549,181.08,181.04,5.5236]
[1730194529254,7.44714234,181.09,181.04,12.97074234]
[1730194529458,16.33058352,181.1,181.06,7.44714234]
[1730194530249,16.33058352,181.1,181.07,7.44714234]
[1730194530460,16.33058352,181.1,181.09,7.44714234]
[1730194530772,16.33058352,181.1,181.04,5.5236]
[1730194530773,32.69058352,181.1,181.04,25.5236]
[1730194530957,16.33058352,181.1,181.07,7.44714234]
[1730194531164,16.33058352,181.1,181.08,7.44714234]
[1730194531857,86.1341,181.18,181.09,7.44714234]
[1730194532175,7.44714234,181.17,181.11,7.44714234]
[1730194532378,0.12549,181.16,181.11,7.44714234]
[1730194532675,12.96674234,181.17,181.11,7.44714234]
[1730194532885,0.12549,181.16,181.11,12.96844234]
[1730194533253,0.12549,181.16,181.12,7.44714234]
[1730194534975,5.64539,181.16,181.12,7.44714234]
[1730194536080,16.32526554,181.17,181.14,7.44714234]
[1730194536978,21.84496554,181.17,181.14,7.44714234]
[1730194538965,21.84496554,181.17,181.15,7.44714234]
[1730194539660,16.32526554,181.17,181.15,7.44714234]
[1730194539861,16.32526554,181.17,181.14,7.44714234]
[1730194540069,21.84506554,181.17,181.14,7.44714234]
[1730194543072,21.84506554,181.17,181.13,7.44714234]
[1730194543873,21.84506554,181.17,181.14,7.44714234]
[1730194545285,21.84506554,181.17,181.12,5.521]
[1730194545488,21.84506554,181.17,181.07,20.0]
[1730194545785,21.84506554,181.17,181.14,7.44714234]
[1730194547769,21.84506554,181.17,181.16,7.44714234]
[1730194547770,16.32526554,181.17,181.16,7.44714234]
[1730194549890,16.32526554,181.17,181.15,12.96734234]
[1730194550387,16.32526554,181.17,181.16,7.44714234]
[1730194553391,16.32526554,181.17,181.16,12.96704234]
[1730194562488,5.5173,181.25,181.16,12.96704234]
[1730194562691,5.5173,181.25,181.21,7.44714234]
[1730194562888,12.96444234,181.25,181.2,7.44714234]
[1730194563095,0.12549,181.24,181.2,7.44714234]
[1730194564206,5.5178,181.23,181.2,7.44714234]
[1730194564403,0.12549,181.22,181.15,16.6269]
[1730194564625,0.12549,181.22,181.18,7.44714234]
[1730194565699,5.64369,181.22,181.18,7.44714234]
[1730194568005,5.64369,181.22,181.19,7.44714234]
[1730194568415,5.64369,181.22,181.16,5.5199]
[1730194568604,5.64369,181.22,181.18,7.44714234]
[1730194569219,5.64369,181.22,181.17,7.44714234]
[1730194569409,7.44714234,181.2,181.11,16.6194]
[1730194569726,7.57263234,181.21,181.15,7.44714234]
[1730194570309,7.44714234,181.19,181.11,16.6194]
[1730194570621,0.12549,181.21,181.11,16.6194]
[1730194570622,7.44714234,181.2,181.14,7.44714234]
[1730194570990,0.12549,181.2,181.15,7.44714234]
[1730194571190,7.57263234,181.18,181.12,5.5212]
[1730194571520,7.57263234,181.18,181.12,12.96834234]
[1730194571697,13.09203234,181.18,181.12,12.96834234]
[1730194573805,13.09203234,181.18,181.12,5.5212]
[1730194573998,13.09203234,181.18,181.04,0.1]
[1730194573999,7.44714234,181.15,181.07,20.0]
[1730194574202,7.44714234,181.15,181.06,16.4348]
[1730194574406,7.44714234,181.14,181.06,16.4348]
[1730194574602,7.44714234,181.14,181.08,7.44714234]
[1730194574820,7.44714234,181.15,181.09,7.44714234]
[1730194575299,12.96744234,181.15,181.09,7.44714234]
[1730194576402,0.12549,181.14,181.09,7.44714234]
[1730194576616,5.64619,181.14,181.09,7.44714234]
[1730194578413,5.64619,181.14,181.06,16.4348]
[1730194578607,5.64619,181.14,181.09,7.44714234]
[1730194582396,5.64619,181.14,181.1,12.96884234]
[1730194582609,5.64619,181.14,181.1,5.5217]
[1730194582814,5.64619,181.14,181.09,12.96914234]
[1730194583331,13.09333234,181.14,181.09,12.96914234]
[1730194584423,13.09333234,181.14,181.09,7.44714234]
[1730194584599,5.64619,181.14,181.09,7.44714234]
[1730194584800,12.96714234,181.16,181.11,7.44714234]
[1730194584999,7.44714234,181.18,181.12,7.44714234]
[1730194585610,7.44714234,181.17,181.12,7.44714234]
[1730194585828,7.44714234,181.17,181.11,7.44714234]
[1730194586032,12.96684234,181.17,181.12,5.5212]
[1730194591326,12.96684234,181.17,181.12,7.44714234]
[1730194592633,12.96684234,181.17,181.06,16.4348]
[1730194592634,12.96684234,181.17,181.11,12.96834234]
[1730194593613,7.44714234,181.15,181.09,7.44714234]
[1730194594716,7.44714234,181.14,181.07,20.0]
[1730194594905,7.44714234,181.14,181.08,7.44714234]
[1730194596433,0.12549,181.13,181.09,5.5221]
[1730194596607,7.57263234,181.13,181.07,12.96984234]
[1730194597719,0.12549,181.13,181.08,7.44714234]
[1730194598023,0.12549,181.13,181.09,7.44714234]
[1730194598810,5.64649,181.13,181.09,7.44714234]
[1730194599523,7.44714234,181.1,181.01,16.4853]
[1730194599712,7.44714234,181.09,181.03,7.44714234]
[1730194600331,7.44714234,181.08,181.03,7.44714234]
[1730194600634,7.44714234,181.08,181.03,12.97074234]
[1730194600835,12.96944234,181.09,181.03,12.97074234]
[1730194601932,12.96944234,181.09,181.03,7.44714234]
[1730194611130,0.12549,181.09,181.03,7.44714234]
[1730194612217,5.64779,181.09,181.03,7.44714234]
[1730194612740,7.44714234,181.07,181.01,16.4853]
[1730194612921,7.44714234,181.07,181.02,7.44714234]
[1730194613122,7.44714234,181.07,181.02,5.5242]
[1730194613337,7.44714234,181.07,181.02,12.97134234]
[1730194613522,7.44714234,181.07,181.02,5.5242]
[1730194614346,5.523,181.06,181.02,5.5242]
[1730194614520,12.97014234,181.06,181.0,0.2094779]
[1730194614838,0.12549,181.05,181.0,7.65662024]
[1730194615416,7.57263234,181.05,181.0,0.2094779]
[1730194616439,5.5236,181.04,181.0,0.2094779]
[1730194617025,5.5236,181.04,181.0,13.18142024]
[1730194618224,5.5236,181.04,181.0,7.65662024]
[1730194618826,36.87221634,181.07,181.01,7.44714234]
[1730194619047,36.87221634,181.07,181.02,7.44714234]
[1730194619547,5.64819,181.07,181.02,7.44714234]
[1730194621646,5.64819,181.07,181.02,12.97124234]
[1730194622831,7.44714234,181.05,181.0,7.65662024]
[1730194623040,7.44714234,181.05,181.0,0.2094779]
[1730194623240,7.44714234,181.04,181.0,0.2094779]
[1730194623544,7.44714234,181.06,181.0,7.65662024]
[1730194623754,7.44714234,181.05,181.0,7.65662024]
[1730194624922,12.97074234,181.05,181.0,7.65662024]
[1730194625323,5.5236,181.05,181.01,7.44714234]
[1730194626533,5.5236,181.05,181.0,5.7341779]
[1730194626534,5.5236,181.05,181.0,13.18132024]
[1730194627450,5.5236,181.05,181.01,7.44714234]
[1730194628356,12.97074234,181.05,181.0,13.18132024]
[1730194632034,12.97074234,181.05,181.0,7.65662024]
[1730194632435,5.5236,181.05,181.01,7.44714234]
[1730194633056,5.5236,181.05,181.01,12.97164234]
[1730194634359,5.5236,181.05,181.0,7.65662024]
[1730194636141,5.5236,181.05,181.01,7.44714234]
[1730194636566,0.12549,181.06,181.01,12.97144234]
[1730194636753,7.44714234,181.08,181.02,7.44714234]
[1730194636954,5.5221,181.09,181.05,7.44714234]
[1730194637259,0.12549,181.08,181.05,7.44714234]
[1730194637952,5.64789,181.08,181.04,7.44714234]
[1730194638149,5.64789,181.08,181.03,12.97074234]
[1730194638868,0.12549,181.06,181.0,0.2094779]
[1730194639170,7.44714234,181.06,181.01,5.5245]
[1730194639860,7.57263234,181.07,181.01,12.97164234]
[1730194640357,5.523,181.06,181.01,12.97164234]
[1730194641244,7.44714234,181.03,181.0,0.2094779]
[1730194641467,7.44714234,181.02,181.0,0.2094779]
[1730194641768,7.44714234,181.03,181.0,0.2094779]
[1730194642957,12.97124234,181.03,181.0,0.2094779]
[1730194643368,5.5241,181.03,181.0,0.2094779]
[1730194651176,5.64919,181.04,181.01,7.44714234]
[1730194651371,5.64919,181.04,181.0,0.2094779]
[1730194651565,13.09633234,181.04,181.0,0.2094779]
[1730194655071,5.5242,181.02,181.0,0.2094779]
[1730194656274,5.5239,181.03,181.0,0.2094779]
[1730194658881,5.64989,181.02,181.0,0.2094779]
[1730194665379,5.5244,181.02,181.0,7.65662024]
[1730194666179,5.5244,181.02,181.0,0.2094779]
[1730194666364,5.64939,181.03,181.0,0.2094779]
[1730194667194,7.44714234,181.02,181.0,0.2094779]
[1730194667889,13.09653234,181.03,181.0,0.2094779]
[1730194669363,5.64939,181.03,181.0,0.2094779]
[1730194669563,13.09653234,181.03,181.0,0.2094779]
[1730194672090,7.44714234,181.02,181.0,0.2094779]
[1730194672271,31.22402634,181.02,181.0,0.2094779]
[1730194672585,30.0,181.01,181.0,0.2094779]
[1730194672986,37.44714234,181.01,181.0,0.2094779]
[1730194673290,131.34951634,181.01,181.0,0.2094779]
[1730194674099,136.87401634,181.01,181.0,0.2094779]
[1730194674293,140.9960518,181.01,181.0,0.2094779]
[1730194674487,136.87401634,181.01,181.0,0.2094779]
[1730194677199,66.87401634,181.01,181.0,0.2094779]
[1730194677407,35.5245,181.01,181.0,0.2094779]
[1730194678594,35.64999,181.01,181.0,0.2094779]
[1730194678802,5.64999,181.01,181.0,0.2094779]
[1730194679514,23.78500944,181.04,181.0,0.2094779]
[1730194679815,5.5241,181.03,181.0,0.2094779]
[1730194680015,0.12549,181.02,181.0,0.2094779]
[1730194681611,5.64989,181.02,181.0,0.2094779]
[1730194694118,7.44714234,181.01,181.0,0.2094779]
[1730194694303,13.09703234,181.02,181.0,0.2094779]
[1730194696510,35.5245,181.01,181.0,0.2094779]
[1730194696717,30.0,181.01,181.0,0.2094779]
[1730194697305,35.5245,181.01,181.0,0.2094779]
[1730194703530,35.64999,181.01,181.0,0.2094779]
[1730194703717,43.09713234,181.01,181.0,0.2094779]
[1730194708130,35.64999,181.01,181.0,0.2094779]
[1730194708334,43.09713234,181.01,181.0,0.2094779]
[1730194712539,30.0,181.01,181.0,0.2094779]
[1730194713121,35.5245,181.01,181.0,0.2094779]
[1730194717446,39.65170149,181.01,181.0,0.2094779]
[1730194720456,35.5245,181.01,181.0,0.2094779]
[1730194720633,39.65203439,181.01,181.0,0.2094779]
[1730194721235,9.65203439,181.01,181.0,0.2094779]
[1730194724456,26.01203439,181.01,181.0,0.2094779]
[1730194724754,33.45917673,181.01,181.0,0.2094779]
[1730194726462,26.01203439,181.01,181.0,0.2094779]
[1730194728254,21.8845,181.01,181.0,0.2094779]
[1730194728550,26.01254464,181.01,181.0,0.2094779]
[1730194728967,20.48804464,181.01,181.0,13.18142024]
[1730194729261,16.3378671,181.04,181.0,13.18142024]
[1730194729447,4.12863058,181.03,181.01,7.44714234]
[1730194729781,16.3378671,181.04,181.01,7.44714234]
[1730194730059,16.3378671,181.04,181.02,7.44714234]
[1730194730562,16.3378671,181.04,181.03,7.44714234]
[1730194731062,16.3378671,181.04,181.03,12.97104234]
[1730194734559,16.3378671,181.04,181.03,5.5239]
[1730194734759,16.3378671,181.04,181.03,12.97104234]
[1730194735860,70.96113316,181.17,181.03,12.97104234]
[1730194736056,23.68247518,181.16,181.1,7.44714234]
[1730194736252,0.12549,181.14,181.11,7.44714234]
[1730194736569,4.12132032,181.13,181.1,7.44714234]
[1730194736755,0.12549,181.14,181.1,7.44714234]
[1730194737075,5.64629,181.14,181.1,7.44714234]
[1730194737361,7.44714234,181.13,181.08,5.5222]
[1730194737566,13.09343234,181.14,181.09,7.44714234]
[1730194737863,4.11767411,181.13,181.09,7.44714234]
[1730194738065,13.09343234,181.14,181.09,7.44714234]
[1730194738568,5.64629,181.14,181.09,7.44714234]
[1730194740466,5.64629,181.14,181.1,7.44714234]
[1730194745448,5.64629,181.14,181.1,6.99336899]
[1730194746070,13.09343234,181.14,181.09,7.44714234]
[1730194748954,13.09343234,181.14,181.04,22.663]
[1730194749162,13.09343234,181.14,181.09,7.44714234]
[1730194750283,5.64629,181.14,181.09,7.44714234]
[1730194754288,5.64629,181.14,181.1,7.44714234]
[1730194754578,12.96704234,181.16,181.11,7.44714234]
[1730194754769,0.12549,181.15,181.11,7.44714234]
[1730194755779,5.64599,181.15,181.11,7.44714234]
[1730194756088,5.5205,181.15,181.12,7.44714234]
[1730194756261,85.2076,181.19,181.1,5.5215]
[1730194756262,23.52333854,181.2,181.13,7.44714234]
[1730194756569,23.52333854,181.2,181.1,5.5215]
[1730194756570,17.07239637,181.19,181.14,7.44714234]
[1730194756772,0.12549,181.18,181.14,7.44714234]
[1730194757882,5.5196,181.17,181.14,7.44714234]
[1730194758063,0.12549,181.16,181.1,20.6944]
[1730194758262,7.57263234,181.16,181.11,7.44714234]
[1730194758986,7.44714234,181.13,181.06,15.4774]
[1730194759177,7.44714234,181.13,181.07,7.44714234]
[1730194760066,12.96804234,181.13,181.07,7.44714234]
[1730194760481,0.12549,181.12,181.07,7.44714234]
[1730194760686,7.44714234,181.11,181.06,22.92454234]
[1730194760858,7.44714234,181.09,181.02,16.3112]
[1730194761062,37.44714234,181.07,181.02,23.75834234]
[1730194761359,30.0,181.07,181.02,23.75834234]
[1730194761559,30.0,181.07,181.04,7.44714234]
[1730194763897,35.5228,181.07,181.02,21.8353]
[1730194764072,7.44714234,181.06,181.0,25.7340779]
[1730194764272,7.44714234,181.06,181.01,7.44714234]
[1730194764671,7.44714234,181.06,181.01,12.97164234]
[1730194765989,12.97034234,181.06,181.01,12.97164234]
[1730194766172,12.97034234,181.06,181.01,5.5245]
[1730194766574,12.97034234,181.06,181.0,7.65662024]
[1730194766775,7.44714234,181.04,181.0,0.2094779]
[1730194766990,7.44714234,181.03,181.0,0.2094779]
[1730194767331,7.57263234,181.05,181.0,5.7341779]
[1730194767970,13.09593234,181.05,181.0,5.7341779]
[1730194773499,7.57263234,181.05,181.0,5.7341779]
[1730194773676,30.0,181.07,181.02,7.44714234]
[1730194774176,30.0,181.07,181.04,7.44714234]
[1730194775087,30.0,181.07,181.04,12.97044234]
[1730194776193,30.0,181.07,181.05,7.44714234]
[1730194777179,30.0,181.07,181.05,12.97024234]
[1730194778686,30.0,181.07,181.05,7.44714234]
[1730194778887,30.0,181.07,181.06,7.44714234]
[1730194780204,7.44714234,181.17,181.07,20.0]
[1730194780384,18.15620742,181.16,181.1,7.44714234]
[1730194780581,4.11887118,181.15,181.1,7.44714234]
[1730194780825,12.96724234,181.16,181.1,7.44714234]
[1730194781096,4.11884788,181.15,181.11,7.44714234]
[1730194781315,12.96704234,181.17,181.12,7.44714234]
[1730194781475,4.11876889,181.16,181.12,7.44714234]
[1730194781679,4.11876889,181.15,181.12,7.44714234]
[1730194781988,12.96674234,181.18,181.12,7.44714234]
[1730194782192,10.70904693,181.17,181.12,7.44714234]
[1730194782795,10.70904693,181.17,181.13,7.44714234]
[1730194783101,9.6384642,181.17,181.13,7.44714234]
[1730194783400,4.1188642,181.16,181.13,7.44714234]
[1730194783574,5.5196,181.17,181.13,7.44714234]
[1730194783781,4.11826206,181.16,181.12,7.44714234]
[1730194783993,12.96674234,181.17,181.12,7.44714234]
[1730194784195,4.11829789,181.16,181.12,7.44714234]
[1730194784376,12.96674234,181.17,181.12,7.44714234]
[1730194784594,4.11799514,181.16,181.12,7.44714234]
[1730194784781,12.96674234,181.17,181.12,7.44714234]
[1730194785104,4.11807166,181.16,181.12,7.44714234]
[1730194785282,12.96674234,181.17,181.12,7.44714234]
[1730194785482,11.56504017,181.16,181.1,7.44714234]
[1730194785685,5.5196,181.17,181.1,7.44714234]
[1730194785979,7.44714234,181.15,181.09,7.44714234]
[1730194786299,7.44714234,181.14,181.09,7.44714234]
[1730194786696,7.57263234,181.15,181.09,7.44714234]
[1730194787002,5.5205,181.14,181.09,7.44714234]
[1730194787501,12.96764234,181.14,181.08,7.44714234]
[1730194788386,12.96764234,181.14,181.09,7.44714234]
[1730194789087,7.44714234,181.13,181.07,7.44714234]
[1730194789283,7.44714234,181.12,181.06,15.9434]
[1730194789485,7.44714234,181.12,181.06,23.39054234]
[1730194790203,7.44714234,181.12,181.07,7.44714234]
[1730194791497,12.96844234,181.12,181.07,7.44714234]
[1730194793293,5.5213,181.12,181.07,7.44714234]
[1730194796096,12.96844234,181.12,181.07,7.44714234]
[1730194797407,12.96844234,181.12,181.06,23.39054234]
[1730194798595,5.5213,181.12,181.07,7.44714234]
[1730194799711,7.44714234,181.13,181.07,7.44714234]
[1730194800014,7.44714234,181.14,181.09,7.44714234]
[1730194800215,12.96734234,181.15,181.1,7.44714234]
[1730194800402,5.5202,181.15,181.1,7.44714234]
[1730194801891,70.0,181.2,181.12,7.44714234]
[1730194802091,31.22402634,181.18,181.12,7.44714234]
[1730194802317,4.1211357,181.17,181.12,7.44714234]
[1730194803014,5.5199,181.16,181.12,7.44714234]
[1730194803211,16.32392137,181.19,181.15,7.44714234]
[1730194803512,4.12186499,181.18,181.16,7.44714234]
[1730194803805,4.12186499,181.18,181.1,29.78856936]
[1730194803806,16.32392137,181.19,181.17,7.44714234]
[1730194804320,16.32392137,181.19,181.18,7.44714234]
[1730194806219,16.32392137,181.19,181.13,20.0]
[1730194806395,16.32392137,181.19,181.18,7.44714234]
[1730194806900,16.32392137,181.19,181.13,20.0]
[1730194806901,16.32392137,181.19,181.16,7.44714234]
[1730194807304,16.32392137,181.19,181.13,20.0]
[1730194807504,16.32392137,181.19,181.15,7.44714234]
[1730194808018,16.32392137,181.19,181.16,7.44714234]
[1730194808218,16.32392137,181.19,181.15,7.44714234]
[1730194808509,5.5188,181.2,181.16,7.44714234]
[1730194808724,5.5188,181.2,181.17,7.44714234]
[1730194809020,5.5184,181.21,181.17,7.44714234]
[1730194810095,5.5184,181.21,181.18,7.44714234]
[1730194811021,5.5181,181.22,181.18,7.44714234]
[1730194811213,5.5181,181.22,181.17,7.44714234]
[1730194811598,5.5181,181.22,181.18,7.44714234]
[1730194812129,5.5181,181.22,181.17,7.44714234]
[1730194815511,5.5181,181.22,181.19,7.44714234]
[1730194818407,5.5181,181.22,181.18,7.44714234]
[1730194821621,7.44714234,181.2,181.13,20.0]
[1730194821802,5.5181,181.22,181.12,16.4142]
[1730194821803,7.44714234,181.18,181.12,16.4142]
[1730194821999,7.44714234,181.18,181.13,7.44714234]
[1730194822529,5.5181,181.22,181.17,7.44714234]
[1730194822748,5.5181,181.22,181.19,7.44714234]
[1730194823225,5.5181,181.22,181.18,7.44714234]
[1730194823720,36.86701634,181.24,181.18,7.44714234]
[1730194823900,11.56703357,181.23,181.18,7.44714234]
[1730194824096,36.86701634,181.24,181.18,7.44714234]
[1730194824300,4.12046212,181.23,181.18,7.44714234]
[1730194824498,36.86701634,181.24,181.18,7.44714234]
[1730194824703,4.12035791,181.23,181.18,7.44714234]
[1730194825014,36.86701634,181.24,181.18,7.44714234]
[1730194825218,4.12032151,181.23,181.18,7.44714234]
[1730194825526,36.86701634,181.24,181.18,7.44714234]
[1730194825702,5.5181,181.22,181.18,7.44714234]
[1730194827722,7.44714234,181.22,181.17,7.44714234]
[1730194827922,7.44714234,181.22,181.16,7.44714234]
[1730194828620,7.44714234,181.21,181.15,7.44714234]
[1730194829814,7.44714234,181.17,181.12,23.86134234]
[1730194830521,7.44714234,181.18,181.13,7.44714234]
[1730194832236,5.5196,181.17,181.13,7.44714234]
[1730194834627,5.5196,181.17,181.09,7.44714234]
[1730194834628,7.44714234,181.14,181.09,7.44714234]
[1730194836430,7.44714234,181.12,181.05,6.1335]
[1730194836727,7.44714234,181.12,181.07,7.44714234]
[1730194837034,7.44714234,181.12,181.05,6.1335]
[1730194837207,7.44714234,181.12,181.07,7.44714234]
[1730194837618,12.96834234,181.12,181.07,7.44714234]
[1730194839406,7.44714234,181.1,181.05,7.44714234]
[1730194839612,7.44714234,181.1,181.04,7.44714234]
[1730194839833,7.44714234,181.09,181.04,7.44714234]
[1730194841137,7.44714234,181.1,181.04,7.44714234]
[1730194841534,7.44714234,181.07,181.01,13.55314234]
[1730194842364,7.44714234,181.07,181.02,7.44714234]
[1730194842723,7.44714234,181.08,181.03,7.44714234]
[1730194842936,89.3242,181.12,181.01,6.106]